fUST/lending_fUST_20240125
["ID","MTS","AMOUNT","RATE_DAILY","PERIOD"]
[312644203,1706125833717,-154.9690062,0.00021208,2]
[312644204,1706125833733,-8142.1783862,0.00023665,2]
[312644205,1706125833746,-977.99536434,0.00026804,2]
[312644206,1706125833757,-500.0,0.00027397,2]
[312644207,1706125833771,-5570.96,0.00027397,3]
[312644208,1706125833785,-4642.46,0.00027397,3]
[312644209,1706125833801,-3868.72,0.00027397,3]
[312644210,1706125833814,-572.16703613,0.00028071,2]
[312644211,1706125833825,-175.60835181,0.00028071,2]
[312644212,1706125833839,-296.35812587,0.00028071,2]
[312644213,1706125833853,-290.32272867,0.00028497,2]
[312644214,1706125833866,-1199.3109008,0.00029,2]
[312644215,1706125833881,-2997.01420292,0.00029397,2]
[312644216,1706125833893,-24403.73852283,0.00029784,2]
[312644293,1706125838321,-19871.73595374,0.00018943,2]
[312644296,1706125838332,-3223.93,0.00027397,3]
[312644298,1706125838344,-49599.5271182,0.00029784,2]
[312644300,1706125838357,-500.0,0.00029998,2]
[312644302,1706125838367,-500.0,0.00029998,2]
[312644304,1706125838376,-500.0,0.00029998,2]
[312644306,1706125838385,-500.0,0.00029998,2]
[312644308,1706125838398,-500.0,0.00029998,2]
[312644316,1706125838534,-500.0,0.00029998,2]
[312644317,1706125838543,-500.0,0.00029998,2]
[312644318,1706125838553,-500.0,0.00029998,2]
[312644319,1706125838563,-500.0,0.00029998,2]
[312644320,1706125838573,-500.0,0.00029998,2]
[312644321,1706125838582,-500.0,0.00029998,2]
[312644322,1706125838592,-500.0,0.00029998,2]
[312644323,1706125838602,-500.0,0.00029998,2]
[312644324,1706125838611,-500.0,0.00029998,2]
[312644325,1706125838620,-500.0,0.00029998,2]
[312644326,1706125838629,-500.0,0.00029998,2]
[312644327,1706125838638,-500.0,0.00029998,2]
[312644328,1706125838648,-500.0,0.00029998,2]
[312644329,1706125838657,-500.0,0.00029998,2]
[312644330,1706125838667,-500.0,0.00029998,2]
[312644331,1706125838677,-500.0,0.00029998,2]
[312644332,1706125838686,-500.0,0.00029998,2]
[312644333,1706125838695,-500.0,0.00029998,2]
[312644334,1706125838705,-500.0,0.00029998,2]
[312644335,1706125838714,-500.0,0.00029998,2]
[312644336,1706125838723,-500.0,0.00029998,2]
[312644337,1706125838732,-500.0,0.00029998,2]
[312644338,1706125838741,-257.04731899,0.00029998,2]
[312644339,1706125838750,-523.53867929,0.00029998,2]
[312644340,1706125838759,-500.0,0.00029998,2]
[312644341,1706125838768,-500.0,0.00029998,2]
[312644342,1706125838777,-500.0,0.00029998,2]
[312644343,1706125838787,-415.90781163,0.00029998,2]
[312644344,1706125838795,-500.0,0.00029998,2]
[312644345,1706125838804,-500.0,0.00029998,2]
[312644346,1706125838813,-500.0,0.00029998,2]
[312644347,1706125838822,-500.0,0.00029998,2]
[312644348,1706125838831,-500.0,0.00029998,2]
[312644349,1706125838840,-500.0,0.00029998,2]
[312644350,1706125838850,-345.12525406,0.00029998,2]
[312644351,1706125838859,-500.0,0.00029998,2]
[312644352,1706125838869,-500.0,0.00029998,2]
[312644353,1706125838878,-500.0,0.00029998,2]
[312644354,1706125838888,-500.0,0.00029998,2]
[312644355,1706125838897,-347.7577911,0.00029998,2]
[312644356,1706125838906,-236.60366764,0.00029998,2]
[312644357,1706125838915,-32838.17102228,0.00029999,2]
[312644358,1706125838924,-500.0,0.00029999,2]
[312644359,1706125838933,-418.22761255,0.00029999,2]
[312644360,1706125838941,-497.83038758,0.00029999,2]
[312644361,1706125838951,-500.0,0.00029999,2]
[312644362,1706125838960,-500.0,0.00029999,2]
[312644363,1706125838969,-500.0,0.00029999,2]
[312644364,1706125838978,-375.92766294,0.0003,4]
[312644365,1706125838986,-1026.77897877,0.0003,2]
[312644366,1706125838995,-180.0,0.0003,4]
[312644367,1706125839005,-139234.85869816,0.0003,4]
[312644368,1706125839015,-1588.71165775,0.0003,2]
[312644369,1706125839024,-177.024153,0.00030137,2]
[312644370,1706125839033,-158.280104,0.00030137,2]
[312644371,1706125839042,-161.1979418,0.00030137,2]
[312644372,1706125839051,-177.024153,0.0003092,2]
[312644373,1706125839060,-300.0,0.00031,15]
[312644374,1706125839069,-177.024153,0.00031703,2]
[312644375,1706125839078,-647.92435267,0.00031885,2]
[312644376,1706125839087,-1274.54346696,0.00032458,2]
[312644377,1706125839097,-177.024153,0.00032485,2]
[312644378,1706125839106,-177.024153,0.00033268,2]
[312644379,1706125839115,-177.024153,0.00034051,2]
[312644380,1706125839124,-177.0772953,0.00034247,2]
[312644381,1706125839134,-177.024153,0.00034834,2]
[312644383,1706125839143,-333.08255178,0.00035,4]
[312644385,1706125839151,-177.024153,0.00035616,2]
[312644386,1706125839162,-760.31790163,0.00035925,30]
[312644388,1706125839172,-154.86062544,0.00036,4]
[312644389,1706125839181,-177.024153,0.00036399,2]
[312644391,1706125839190,-150.0,0.00036772,2]
[312644393,1706125839199,-150.086,0.00036772,2]
[312644395,1706125839209,-12260.48652932,0.0003715,5]
[312644397,1706125839219,-177.024153,0.00037182,2]
[312644398,1706125839228,-177.024153,0.00037965,2]
[312644400,1706125839237,-746.00771525,0.000385,4]
[312644402,1706125839246,-177.024153,0.00038747,2]
[312644404,1706125839255,-200.0,0.000388,4]
[312644406,1706125839264,-3000.0,0.00039,7]
[312644408,1706125839274,-5000.0,0.00039068,2]
[312644410,1706125839283,-307.70067308,0.000395,21]
[312644411,1706125839292,-177.024153,0.0003953,2]
[312644413,1706125839302,-1000.0,0.00039597,2]
[312644415,1706125839312,-1000.0,0.00039705,2]
[312644417,1706125839322,-1000.0,0.00039711,2]
[312644418,1706125839331,-1000.0,0.00039738,2]
[312644420,1706125839341,-1000.0,0.00039753,2]
[312644422,1706125839350,-1000.0,0.00039764,2]
[312644424,1706125839361,-46627.86937661,0.000398,10]
[312644426,1706125839370,-500.0,0.000398,7]
[312644428,1706125839379,-150.364464,0.000398,2]
[312644430,1706125839388,-191.044128,0.000398,14]
[312644432,1706125839400,-188.29380735,0.000398,2]
[312644433,1706125839409,-1000.0,0.0003982,2]
[312644435,1706125839418,-1000.0,0.00039842,2]
[312644437,1706125839427,-1000.0,0.00039842,2]
[312644439,1706125839437,-1000.0,0.00039851,2]
[312644441,1706125839447,-1527.82961041,0.00039869,4]
[312644443,1706125839456,-333.91919916,0.00039869,4]
[312644446,1706125839468,-1452.51672462,0.00039877,4]
[312644448,1706125839477,-3744.34358192,0.00039877,4]
[312644450,1706125839486,-880.07295615,0.00039878,4]
[312644452,1706125839495,-155.06191329,0.00039878,4]
[312644454,1706125839504,-588.04560763,0.00039878,4]
[312644456,1706125839514,-265.34985506,0.00039878,4]
[312644458,1706125839523,-301.02868663,0.00039879,4]
[312644460,1706125839533,-86246.96592653,0.0003988,2]
[312644461,1706125839542,-154.86062544,0.0003988,4]
[312644463,1706125839551,-687.02930473,0.0003988,4]
[312644465,1706125839561,-351.56941913,0.0003988,7]
[312644467,1706125839571,-215.93124285,0.0003988,4]
[312644468,1706125839580,-155.23205591,0.0003988,2]
[312644470,1706125839590,-154.98450155,0.0003988,4]
[312644472,1706125839599,-343.09681091,0.0003988,4]
[312644473,1706125839608,-903.38038654,0.0003988,4]
[312644474,1706125839617,-329.73242905,0.0003988,4]
[312644475,1706125839627,-746.70427294,0.0003988,4]
[312644476,1706125839637,-594.86528388,0.0003988,4]
[312644477,1706125839646,-156.89450249,0.00039881,4]
[312644478,1706125839656,-2034.57165769,0.00039881,4]
[312644479,1706125839666,-500.0,0.00039883,5]
[312644480,1706125839676,-200.0,0.000399,11]
[312644481,1706125839687,-211.53795191,0.00039915,4]
[312644482,1706125839697,-18904.87156494,0.00039916,4]
[312644484,1706125839707,-818.67757888,0.00039916,4]
[312644485,1706125839716,-161.02224773,0.00039916,4]
[312644488,1706125839726,-1579.39395429,0.00039917,4]
[312644490,1706125839737,-154.9690062,0.00039917,4]
[312644492,1706125839746,-180.696184,0.00039918,4]
[312644493,1706125839755,-4629.92604138,0.00039919,30]
[312644495,1706125839765,-31196.72739789,0.00039989,10]
[312644498,1706125839777,-4429.5703663,0.00039989,10]
[312644500,1706125839789,-2076.24576642,0.00039989,10]
[312644502,1706125839800,-39888.0,0.00039989,10]
[312644545,1706125841305,-1596.79825062,0.00039989,10]
[312644550,1706125841365,-1002.04205956,0.00039989,10]
[312644597,1706125843340,-2899.12227235,0.00039989,10]
[312644906,1706125846364,-8611.79473064,0.00039989,10]
[312644908,1706125846380,-151.0,0.00039989,2]
[312644910,1706125846393,-151.0,0.00039989,2]
[312644912,1706125846405,-855.383101,0.00039989,2]
[312644914,1706125846415,-855.383101,0.00039989,2]
[312644916,1706125846425,-151.0,0.00039989,2]
[312644918,1706125846434,-151.0,0.00039989,2]
[312644920,1706125846444,-151.0,0.00039989,2]
[312644922,1706125846454,-731.866523,0.00039989,2]
[312644924,1706125846463,-731.866523,0.00039989,2]
[312644926,1706125846474,-9468.149749,0.00039989,2]
[312644927,1706125846485,-6136.19570298,0.00039989,2]
[312644946,1706125848582,293.49920597,0.00022,4]
[312645033,1706126536998,1451.43574757,0.000231,4]
[312645081,1706127032404,-938.03984623,0.00021821,2]
[312645083,1706127032414,-2769.5,0.00021822,3]
[312645085,1706127032423,-903.88612378,0.00021828,2]
[312645087,1706127032433,-154.87609912,0.00021828,2]
[312645098,1706127032442,-154.87609912,0.00021828,2]
[312645099,1706127032546,-1579.8258689,0.00021828,2]
[312645100,1706127032555,-36974.74812136,0.00021828,2]
[312645102,1706127032564,-154.87609912,0.00021828,2]
[312645104,1706127032573,-616.92156387,0.00021828,2]
[312645105,1706127032584,-1484.61502997,0.00021829,2]
[312645107,1706127032593,-211.59032414,0.00021829,2]
[312645109,1706127032602,-329.63381135,0.00021829,2]
[312645111,1706127032611,-20879.12353862,0.00021829,2]
[312645112,1706127032620,-3486.61806957,0.0002183,2]
[312645114,1706127032631,-3746.91160772,0.0002183,2]
[312645116,1706127032640,-11585.64625657,0.0002183,2]
[312645118,1706127032652,-1927.13768106,0.0002183,2]
[312645151,1706127038457,-155.03436087,0.00021829,2]
[312645152,1706127038466,-154.92253873,0.00021829,2]
[312645154,1706127038476,-2307.92,0.0002183,3]
[312645156,1706127038485,-8178.2063935,0.0002183,2]
[312645158,1706127038495,-4815.22334348,0.0002183,2]
[312645160,1706127038505,-2035.08647523,0.0002183,2]
[312645162,1706127038514,-154.87609912,0.00021831,2]
[312645164,1706127038523,-4104.72771243,0.00021831,2]
[312645166,1706127038532,-1242.8279432,0.00021831,2]
[312645168,1706127038541,-555.52588132,0.00021831,2]
[312645170,1706127038550,-561.77353058,0.00021831,2]
[312645172,1706127038559,-4173.05485959,0.00021831,2]
[312645174,1706127038568,-243.19997644,0.00021832,2]
[312645176,1706127038576,-588.5086678,0.00021832,2]
[312645177,1706127038586,-452.88221546,0.00021832,2]
[312645179,1706127038594,-522.24897159,0.00021833,2]
[312645181,1706127038604,-175.26340057,0.00021833,2]
[312645183,1706127038613,-3988.09,0.00021833,3]
[312645185,1706127038622,-18909.22401992,0.00021833,2]
[312645187,1706127038631,-3323.4,0.00021833,3]
[312645189,1706127038640,-595.27318689,0.00021834,2]
[312645191,1706127038649,-156.07097879,0.00021834,2]
[312645193,1706127038659,-2039.5598213,0.00021834,2]
[312645195,1706127038668,-19871.73595374,0.0002184,2]
[312645197,1706127038678,-261.19714491,0.00021841,2]
[312645199,1706127038687,-2410.29523387,0.00021841,2]
[312645201,1706127038697,-302.00997705,0.00021841,2]
[312645203,1706127038706,-244.18511034,0.00021841,2]
[312645204,1706127038715,-81222.81038163,0.00021843,2]
[312645206,1706127038724,-154.87609912,0.00021851,2]
[312645208,1706127038734,-169.103252,0.00021918,2]
[312645210,1706127038746,-20902.38645894,0.00021999,2]
[312645212,1706127038755,-547.94303379,0.00022,2]
[312645213,1706127038764,-542.3971227,0.00022,2]
[312645214,1706127038773,-3969.42099078,0.00022,2]
[312645215,1706127038782,-426.10577832,0.00022,2]
[312645216,1706127038791,-169.103252,0.00022559,2]
[312645217,1706127038838,-241.510499,0.00022985,2]
[312645218,1706127038847,-188.29380735,0.00023054,2]
[312645219,1706127038856,-343.19914178,0.000231,2]
[312645220,1706127038865,-2084.95173309,0.000231,2]
[312645221,1706127038874,-1826.50328437,0.000231,2]
[312645222,1706127038884,-169.103252,0.000232,2]
[312645223,1706127038893,-1410.76577262,0.00023665,2]
[312645224,1706127038902,-423.22973179,0.00023665,2]
[312645225,1706127039003,-2463.81500244,0.00023665,2]
[312645226,1706127039014,-949.67767007,0.00023665,2]
[312645227,1706127039023,-169.103252,0.00023841,2]
[312645228,1706127039034,-200.0,0.0002404,7]
[312645229,1706127039044,-169.103252,0.00024482,2]
[312645230,1706127039053,-2104.07287401,0.00026707,2]
[312645231,1706127039063,-500.0,0.00026707,2]
[312645232,1706127039072,-500.0,0.00026707,2]
[312645233,1706127039081,-500.0,0.00026707,2]
[312645234,1706127039091,-500.0,0.00026707,2]
[312645235,1706127039101,-500.0,0.00026707,2]
[312645236,1706127039110,-500.0,0.00026707,2]
[312645237,1706127039119,-500.0,0.00026707,2]
[312645238,1706127039128,-500.0,0.00026707,2]
[312645239,1706127039138,-500.0,0.00026707,2]
[312645240,1706127039147,-500.0,0.00026707,2]
[312645241,1706127039156,-500.0,0.00026707,2]
[312645242,1706127039165,-500.0,0.00026707,2]
[312645243,1706127039176,-518.00745588,0.00026707,2]
[312645244,1706127039185,-500.0,0.00026707,2]
[312645245,1706127039194,-500.0,0.00026707,2]
[312645246,1706127039203,-500.0,0.00026707,2]
[312645247,1706127039213,-500.0,0.00026707,2]
[312645248,1706127039221,-553.99871468,0.00026707,2]
[312645249,1706127039231,-500.0,0.00026707,2]
[312645250,1706127039240,-500.0,0.00026707,2]
[312645251,1706127039249,-500.0,0.00026707,2]
[312645252,1706127039258,-500.0,0.00026707,2]
[312645253,1706127039267,-500.0,0.00026707,2]
[312645254,1706127039276,-221.58995264,0.00026707,2]
[312645255,1706127039285,-500.0,0.00026707,2]
[312645256,1706127039295,-500.0,0.00026707,2]
[312645257,1706127039303,-500.0,0.00026707,2]
[312645258,1706127039313,-600.0,0.00026707,2]
[312645259,1706127039323,-500.0,0.00026707,2]
[312645260,1706127039333,-500.0,0.00026707,2]
[312645261,1706127039344,-500.0,0.00026707,2]
[312645262,1706127039353,-500.0,0.00026707,2]
[312645263,1706127039362,-500.0,0.00026707,2]
[312645264,1706127039371,-500.0,0.00026707,2]
[312645265,1706127039381,-500.0,0.00026707,2]
[312645266,1706127039390,-500.0,0.00026707,2]
[312645267,1706127039400,-500.0,0.00026707,2]
[312645268,1706127039409,-457.60271298,0.00026707,2]
[312645269,1706127039419,-500.0,0.00026707,2]
[312645270,1706127039428,-500.0,0.00026707,2]
[312645271,1706127039438,-500.0,0.00026707,2]
[312645272,1706127039447,-500.0,0.00026707,2]
[312645273,1706127039456,-500.0,0.00026707,2]
[312645274,1706127039465,-500.0,0.00026707,2]
[312645275,1706127039474,-500.0,0.00026707,2]
[312645276,1706127039484,-500.0,0.00026707,2]
[312645277,1706127039493,-500.0,0.00026707,2]
[312645278,1706127039502,-500.0,0.00026707,2]
[312645279,1706127039512,-500.0,0.00026707,2]
[312645280,1706127039521,-422.89802991,0.00026707,2]
[312645281,1706127039530,-500.0,0.00026707,2]
[312645282,1706127039540,-500.0,0.00026707,2]
[312645283,1706127039551,-500.0,0.00026707,2]
[312645284,1706127039560,-500.0,0.00026707,2]
[312645285,1706127039569,-500.0,0.00026707,2]
[312645286,1706127039578,-500.0,0.00026707,2]
[312645287,1706127039588,-500.0,0.00026707,2]
[312645288,1706127039597,-500.0,0.00026707,2]
[312645289,1706127039606,-500.0,0.00026707,2]
[312645290,1706127039616,-500.0,0.00026707,2]
[312645291,1706127039625,-500.0,0.00026707,2]
[312645292,1706127039634,-500.0,0.00026707,2]
[312645293,1706127039643,-500.0,0.00026707,2]
[312645294,1706127039652,-500.0,0.00026707,2]
[312645295,1706127039661,-500.0,0.00026707,2]
[312645296,1706127039670,-500.0,0.00026707,2]
[312645297,1706127039679,-500.0,0.00026707,2]
[312645298,1706127039688,-500.0,0.00026707,2]
[312645299,1706127039697,-500.0,0.00026707,2]
[312645300,1706127039707,-7960.18375069,0.00026708,2]
[312645301,1706127039716,-309.52025057,0.00026708,2]
[312645302,1706127039725,-155.32484539,0.00026708,2]
[312645303,1706127039734,-4724.75315233,0.00026708,2]
[312645304,1706127039744,-526.75292248,0.00026708,2]
[312645305,1706127039756,-1253.41868812,0.00026708,2]
[312645306,1706127039765,-154.92253873,0.00026708,2]
[312645307,1706127039774,-178.76422807,0.00026708,2]
[312645308,1706127039783,-154.92253873,0.00026708,2]
[312645309,1706127039793,-260.87494487,0.00026708,2]
[312645310,1706127039802,-680.10116762,0.00026708,2]
[312645311,1706127039811,-154.92253873,0.00026708,2]
[312645312,1706127039820,-8761.98403332,0.00026708,2]
[312645313,1706127039831,-2074.57916651,0.00026709,2]
[312645314,1706127039841,-760.31790163,0.00026714,5]
[312645315,1706127039852,-500.0,0.00027397,2]
[312645316,1706127039861,-14208.94828582,0.000275,2]
[312645317,1706127039870,-15814.38999995,0.00027855,2]
[312645318,1706127039879,-500.0,0.00029683,2]
[312645319,1706127039888,-500.0,0.00029683,2]
[312645320,1706127039897,-500.0,0.00029683,2]
[312645321,1706127039905,-169.16418008,0.00029683,2]
[312645322,1706127039914,-500.0,0.00029683,2]
[312645323,1706127039924,-327.12170968,0.00029683,2]
[312645324,1706127039934,-500.0,0.00029683,2]
[312645325,1706127039943,-500.0,0.00029683,2]
[312645326,1706127039952,-500.0,0.00029683,2]
[312645327,1706127039962,-500.0,0.00029683,2]
[312645328,1706127039971,-500.0,0.00029683,2]
[312645329,1706127039981,-500.0,0.00029683,2]
[312645330,1706127039990,-71077.77614026,0.00029684,2]
[312645331,1706127039999,-4028.03026231,0.000298,2]
[312645332,1706127040008,-122831.53351436,0.0003,4]
[312645333,1706127040136,-16403.3251838,0.0003,4]
[312645334,1706127040145,-180.0,0.0003,4]
[312645335,1706127040154,-1588.71165775,0.0003,2]
[312645336,1706127040163,-3.86836586,0.0003013,2]
[312645337,1706127040176,-194.01547844,0.0003013,2]
[312645338,1706127040185,-213.959044,0.00030137,2]
[312645339,1706127040194,-158.280104,0.00030137,2]
[312645340,1706127040203,-4736.37372677,0.000305,2]
[312645341,1706127040213,-213.959044,0.0003092,2]
[312645342,1706127040222,-72023.32288865,0.00031,2]
[312645343,1706127040233,-60541.84610266,0.00031,2]
[312645344,1706127040245,-2205.88968704,0.00031,2]
[312645345,1706127040267,-45988.20977531,0.00031,2]
[312645346,1706127040278,-48005.2001,0.00031,2]
[312645347,1706127040289,-23267.64535385,0.00031,2]
[312645348,1706127040301,-2333.1,0.00031,2]
[312645356,1706127041508,-154.87609912,0.00021829,2]
[312645357,1706127041518,-2540.97951912,0.00031,2]
[312645358,1706127041530,-4205.89,0.00031,2]
[312645359,1706127041542,-11608.49999995,0.00031,2]
[312645360,1706127041554,-1499.44008239,0.00031,2]
[312645361,1706127041566,-26741.02362794,0.00031,2]
[312645449,1706127043524,-7779.55311235,0.00026706,2]
[312645450,1706127043536,-559.67534552,0.00026706,2]
[312645509,1706127046566,-154.87609912,0.00026705,2]
[312645511,1706127046576,-1185.62404272,0.00026705,2]
[312645513,1706127046588,-394.20182618,0.00026705,2]
[312645515,1706127046597,-41.14176537,0.00026705,2]
[312645519,1706127046624,-113.73433375,0.00026705,2]
[312645521,1706127046633,-9761.26566626,0.00026706,2]
[312645630,1706127105273,154.87609912,0.00023097,4]
[312645632,1706127240654,761.03806711,0.00021713,5]
[312645641,1706127489736,154.86062544,0.00020169,4]
[312645642,1706127505732,154.86062544,0.0001816,3]
[312645643,1706127565067,343.19914178,0.0001816,2]
[312645644,1706127581072,343.19914178,0.0001816,2]
[312645645,1706127599077,342.89214917,0.0001816,2]
[312645653,1706128013029,215.483501,0.00018229,2]
[312645655,1706128016258,213.48757656,0.00018228,2]
[312645656,1706128016285,329.63381135,0.00018228,2]
[312645658,1706128020304,1253.78104744,0.00018228,2]
[312645661,1706128066521,280.0,0.00022736,7]
[312645664,1706128180135,24900.0,0.00017804,2]
[312645665,1706128223516,-243.19997644,0.00018686,2]
[312645666,1706128223544,-154.87609912,0.00018686,2]
[312645667,1706128223569,-154.87609912,0.00018686,2]
[312645668,1706128223593,-211.59032414,0.00018686,2]
[312645669,1706128223617,-2115.45750118,0.00018686,2]
[312645797,1706128238831,-261.19714491,0.00018683,2]
[312645798,1706128238841,-1026.52542137,0.00018683,2]
[312645799,1706128238850,-178.96550385,0.00018684,2]
[312645800,1706128238860,-1294.07008414,0.00018684,2]
[312645801,1706128238869,-154.87609912,0.00018684,2]
[312645802,1706128238878,-154.87609912,0.00018684,2]
[312645803,1706128238887,-526.86671642,0.00018684,2]
[312645804,1706128238896,-522.24897159,0.00018684,2]
[312645805,1706128238905,-181.02826495,0.00018684,2]
[312645806,1706128238914,-294.97608218,0.00018684,2]
[312645807,1706128238922,-4815.22334348,0.00018684,2]
[312645808,1706128238931,-8764.16069463,0.00018684,2]
[312645809,1706128238940,-4104.72771243,0.00018684,2]
[312645810,1706128238949,-166.72224739,0.00018685,2]
[312645811,1706128238958,-680.27751696,0.00018685,2]
[312645812,1706128238968,-156.07097879,0.00018685,2]
[312645813,1706128238977,-154.87609912,0.00018685,2]
[312645814,1706128238986,-978.2579722,0.00018685,2]
[312645815,1706128238995,-175.26340057,0.00018685,2]
[312645816,1706128239004,-19871.73595374,0.00018685,2]
[312645817,1706128239013,-5846.88340997,0.00018686,2]
[312645818,1706128239022,-20879.12353862,0.00018686,2]
[312645819,1706128239032,-21690.99033113,0.00018686,2]
[312645820,1706128239041,-19706.16354589,0.00018686,2]
[312645821,1706128239050,-297.85039336,0.00018686,2]
[312645822,1706128239060,-155.03436087,0.00018686,2]
[312645823,1706128239071,-211.59032414,0.00018686,2]
[312645824,1706128239118,-167.05007612,0.00018687,2]
[312645825,1706128239129,-154.87609912,0.00018687,2]
[312645826,1706128239141,-595.27318689,0.00018687,2]
[312645827,1706128239156,-1484.61502997,0.00018687,2]
[312645828,1706128239166,-154.87609912,0.00018687,2]
[312645829,1706128239175,-2035.08647523,0.00018687,2]
[312645830,1706128239184,-154.87609912,0.00018688,2]
[312645831,1706128239194,-265.548392,0.00018688,2]
[312645832,1706128239203,-3746.91160772,0.00018688,2]
[312645833,1706128239212,-81222.81038163,0.00018688,2]
[312645834,1706128239221,-36974.74812136,0.00018688,2]
[312645835,1706128239230,-2410.29523387,0.00018689,2]
[312645836,1706128239239,-154.87609912,0.00018689,2]
[312645837,1706128239248,-20906.59632435,0.00018689,2]
[312645838,1706128239257,-244.18511034,0.00018689,2]
[312645839,1706128239265,-903.88612378,0.0001869,2]
[312645840,1706128239274,-555.52588132,0.0001869,2]
[312645841,1706128239283,-616.92156387,0.0001869,2]
[312645842,1706128239292,-1242.8279432,0.0001869,2]
[312645843,1706128239301,-1993.99921548,0.0001869,2]
[312645844,1706128239311,-260.95376915,0.0001869,2]
[312645845,1706128239320,-18909.22401992,0.00018691,2]
[312645846,1706128239330,-561.77353058,0.00018691,2]
[312645847,1706128239339,-938.03984623,0.00018691,2]
[312645848,1706128239348,-154.87609912,0.00018691,2]
[312645849,1706128239357,-302.00997705,0.00018691,2]
[312645850,1706128239367,-588.5086678,0.00018692,2]
[312645851,1706128239377,-2039.5598213,0.00018692,2]
[312645852,1706128239386,-452.88221546,0.00018693,2]
[312645854,1706128239395,-452.88221546,0.00018693,2]
[312645856,1706128239404,-452.88221546,0.00018693,2]
[312645857,1706128239414,-452.88221546,0.00018693,2]
[312645859,1706128239423,-243.54280176,0.00018703,2]
[312645861,1706128239432,-154.87609912,0.0001879,2]
[312645863,1706128239442,-213.33442515,0.00018795,2]
[312645864,1706128239451,-329.33939567,0.00018795,2]
[312645866,1706128239460,-1253.0563288,0.00018795,2]
[312645868,1706128239469,-2074.57916651,0.00019022,2]
[312645870,1706128239478,-1175.59889736,0.00019022,2]
[312645872,1706128239487,-2104.07287401,0.00019022,2]
[312645874,1706128239496,-163.02214,0.00019178,2]
[312645876,1706128239505,-542.3971227,0.00020169,2]
[312645878,1706128239514,-547.94303379,0.00020169,2]
[312645880,1706128239523,-164.051894,0.00020196,2]
[312645882,1706128239532,-200.0,0.00020669,2]
[312645883,1706128239541,-500.0,0.00020822,2]
[312645885,1706128239550,-500.0,0.00020822,2]
[312645887,1706128239560,-500.0,0.00020822,2]
[312645889,1706128239570,-500.0,0.00020822,2]
[312645891,1706128239580,-500.0,0.00020822,2]
[312645893,1706128239590,-500.0,0.00020822,2]
[312645895,1706128239599,-500.0,0.00020822,2]
[312645897,1706128239608,-500.0,0.00020822,2]
[312645899,1706128239618,-500.0,0.00020822,2]
[312645901,1706128239628,-500.0,0.00020822,2]
[312645903,1706128239637,-500.0,0.00020822,2]
[312645905,1706128239651,-500.0,0.00020822,2]
[312645907,1706128239660,-500.0,0.00020822,2]
[312645909,1706128239670,-500.0,0.00020822,2]
[312645911,1706128239679,-500.0,0.00020822,2]
[312645912,1706128239689,-500.0,0.00020822,2]
[312645914,1706128239698,-500.0,0.00020822,2]
[312645916,1706128239706,-500.0,0.00020822,2]
[312645918,1706128239715,-500.0,0.00020822,2]
[312645920,1706128239724,-518.00745588,0.00020822,2]
[312645922,1706128239733,-500.0,0.00020822,2]
[312645924,1706128239743,-500.0,0.00020822,2]
[312645926,1706128239752,-500.0,0.00020822,2]
[312645927,1706128239761,-500.0,0.00020822,2]
[312645929,1706128239770,-500.0,0.00020822,2]
[312645931,1706128239778,-500.0,0.00020822,2]
[312645933,1706128239788,-500.0,0.00020822,2]
[312645935,1706128239796,-500.0,0.00020822,2]
[312645937,1706128239805,-500.0,0.00020822,2]
[312645939,1706128239816,-500.0,0.00020822,2]
[312645940,1706128239824,-500.0,0.00020822,2]
[312645942,1706128239833,-500.0,0.00020822,2]
[312645944,1706128239842,-500.0,0.00020822,2]
[312645946,1706128239850,-500.0,0.00020822,2]
[312645948,1706128239859,-500.0,0.00020822,2]
[312645950,1706128239868,-500.0,0.00020822,2]